[Event "Prague Festival Masters 2024"]
[Site "Prague"]
[Date "2024.02.27"]
[Round "1.1"]
[White "Bartel, Mateusz"]
[Black "Maghsoodloo, Parham"]
[Result "0-1"]
[ECO "B51"]
[WhiteElo "2657"]
[BlackElo "2740"]
[Annotator "TA"]
[PlyCount "68"]
[EventDate "2024.02.22"]
[EventType "tourn"]
[EventCountry "CZE"]
[SourceTitle "playchess.com"]
[Source "ChessBase"]
[SourceQuality "1"]
[TimeControl "40/5400+30:1800+30"]

{[%evp 14,68,26,10,21,22,22,22,30,0,0,20,26,0,0,0,0,-21,0,-17,-18,-20,-29,-53,-45,-83,-80,-91,-88,-91,-70,-101,-114,-117,-127,-120,-89,-171,-181,-227,-231,-232,-207,-254,-265,-317,-329,-305,-306,-565,-562,-1593,-1600,-1158,-977,-1171,-1092]} 1. e4 {[%emt 0:00:16]} c5 {[%emt 0:00:08]} 2. Nf3 {[%emt 0:00:00]} d6 {[%emt 0:00:06]} 3. Bb5+ {[%emt 0:00:12]} Nd7 {[%emt 0:00:10]} 4. d4 {[%emt 0:00:30]} cxd4 {[%emt 0:00:10]} 5. Qxd4 {[%emt 0:00:07]} e5 {[%emt 0:13:59]} 6. Qd3 {[%emt 0:07:42]} h6 {[%emt 0:02:23]} 7. Nc3 {[%emt 0:01:33]} Ngf6 {[%emt 0:00:14]} 8. O-O {[%emt 0:04:02]} a6 {[%emt 0:04:31]} 9. Bxd7+ {[%emt 0:00:32]} Bxd7 {[%emt 0:00:09]} 10. Nd2 {[%emt 0:01:18][%cal Bf3d2,Bd2f1,Bf1e3,Be3c4][%mdl 32]} b5 {[%emt 0:00:33] The position is equal.} 11. a4 {[%emt 0:04:25]} Rb8 {[%emt 0:17:07]} 12. Rd1 {[%emt 0:08:53]} Qc7 {[%emt 0:05:02]} 13. Nf1 {[%emt 0:12:12]} b4 {[%emt 0:01:40]} 14. Nd5 {[%emt 0:12:47]} Nxd5 {[%emt 0:01:06]} 15. exd5 {[%emt 0:00:54]} a5 {[%emt 0:05:27]} 16. Ne3 {[%emt 0:06:07]} Be7 {[%emt 0:02:17]} 17. b3 {[%emt 0:07:32]} O-O {[%emt 0:01:47]} 18. Bb2 {[%emt 0:00:01][%cal Ob2e5]} Bg5 {[%emt 0:12:03]} 19. Nc4 {[%emt 0:05:12]} Bc8 {[%emt 0:04:44]} 20. c3 {[%emt 0:00:49]} Ba6 {[%emt 0:00:10]} 21. cxb4 {[%emt 0:01:02]} axb4 {[%emt 0:00:34]} ({Don't play} 21... Rxb4 22. Ba3 $11) 22. g3 {[%emt 0:04:33]} f5 {[%emt 0:08:25]} 23. h4 {[%emt 0:02:07] [#]} Bd8 {[%emt 0:02:54]} 24. Rac1 {[%emt 0:01:23]} Qe7 {[%emt 0:00:58]} 25. Re1 {[%emt 0:06:22] [#]} (25. f4 $17 {might work better.}) 25... f4 $1 $19 {[%emt 0:02:22]} 26. Kg2 {[%emt 0:00:29]} (26. Rc2 $142) 26... Bb6 {[%emt 0:01:02]} 27. Rc2 {[%emt 0:02:43]} Qf6 {[%emt 0:04:35]} 28. Qf3 {[%emt 0:02:03]} Rbc8 {[%emt 0:03:11]} 29. Re4 {[%emt 0:01:18][%cal Oe4f4]} Qg6 {[%emt 0:03:34]} 30. g4 {[%emt 0:02:26]} Rc5 {[%emt 0:01:11]} 31. h5 $2 {[%emt 0:01:45]} (31. Bxe5 dxe5 32. Nxe5) 31... Qg5 {[%emt 0:00:14] Strongly threatening ...Bc8. Black is clearly winning.} 32. Qd1 {[%emt 0:00:20]} f3+ {[%emt 0:01:16]} 33. Kg1 {[%emt 0:03:22]} Rf4 {[%emt 0:01:52]} 34. Rxf4 {[%emt 0:00:14]} Qxf4 {[%emt 0:00:04] Weighted Error Value: White=0.51/Black=0.03 (flawless) .  Mistake:       	White=3     	---        Inaccurate:     	White=4     	---        OK:         	White=6     	Black=13     Best:        	White=2     	Black=4      Strong:       	---       	Black=1} 0-1

[Event "Prague Festival Masters 2024"]
[Site "Prague"]
[Date "2024.02.27"]
[Round "1.2"]
[White "Gukesh D"]
[Black "Rapport, Richard"]
[Result "1/2-1/2"]
[ECO "B67"]
[WhiteElo "2725"]
[BlackElo "2717"]
[Annotator "TA"]
[PlyCount "79"]
[EventDate "2024.02.22"]
[EventType "tourn"]
[EventCountry "CZE"]
[SourceTitle "playchess.com"]
[Source "ChessBase"]
[SourceQuality "1"]
[TimeControl "40/5400+30:1800+30"]

{[%evp 18,79,13,20,34,22,29,20,11,0,5,10,25,16,38,47,66,-12,19,0,16,22,16,21,29,29,61,0,54,37,43,0,0,4,26,22,114,113,121,120,168,157,147,0,0,2,4,8,6,0,0,0,0,0,0,0,0,0,0,0,0,0,0,-14]} 1. e4 {[%emt 0:00:04]} c5 {[%emt 0:01:17]} 2. Nf3 {[%emt 0:00:10]} d6 {[%emt 0:00:29]} 3. d4 {[%emt 0:01:01]} cxd4 {[%emt 0:01:38]} 4. Nxd4 {[%emt 0:00:07]} Nf6 {[%emt 0:00:05]} 5. Nc3 {[%emt 0:00:07]} Nc6 {[%emt 0:00:03]} 6. Bg5 {[%emt 0:01:45]} Bd7 {[%emt 0:00:10]} 7. Qd2 {[%emt 0:00:17]} a6 {[%emt 0:00:18]} 8. O-O-O {[%emt 0:02:23]} e6 {[%emt 0:00:09]} 9. f3 {[%emt 0:00:43]} Nxd4 {[%emt 0:00:23]} 10. Qxd4 {[%emt 0:00:06]} Be7 {[%emt 0:00:15] B67: Sicilian: Richter-Rauzer: 7...a6 8 0-0-0 Bd7, lines without 9 f4 Be7.} 11. Kb1 {[%emt 0:06:47]} Qc7 {[%emt 0:00:21]} 12. Qd2 {[%emt 0:00:55]} b5 {[%emt 0:00:50]} 13. h4 {[%emt 0:02:11]} b4 {[%emt 0:01:34]} 14. Ne2 {[%emt 0:00:08]} a5 {[%emt 0:00:12]} 15. c4 {[%emt 0:00:21]} e5 {[%emt 0:01:48]} 16. Ng3 $146 {[%emt 0:06:24]} ({Predecessor:} 16. g4 h5 17. Bxf6 Bxf6 18. g5 Be7 19. Ng3 g6 20. f4 Bg4 21. Rc1 exf4 22. Qxf4 {½-½ Lagunow,R (2396)-Kramer,J (2455) BL2-Nord 2122 2022 (6.2)}) 16... h6 {[%emt 0:08:40]} 17. Be3 {[%emt 0:01:41]} (17. Bxf6 $14 gxf6 18. Nf5) 17... h5 {[%emt 0:15:18]} 18. Be2 {[%emt 0:12:49]} g6 {[%emt 0:07:27]} 19. Nf1 {[%emt 0:00:41]} Be6 {[%emt 0:16:35]} 20. Bf2 {[%emt 0:00:36]} Qb7 {[%emt 0:05:42]} 21. Ne3 {[%emt 0:01:27]} O-O {[%emt 0:06:25]} 22. Bd3 {[%emt 0:31:30]} Rfc8 {[%emt 0:05:00]} 23. Nd5 {[%emt 0:02:21]} Bxd5 {[%emt 0:01:47]} 24. exd5 {[%emt 0:08:05][%cal Og2g4]} Bf8 {[%emt 0:01:19]} 25. g4 {[%emt 0:05:45]} b3 {[%emt 0:09:32]} (25... hxg4 $6 26. fxg4 Qd7 27. Rdg1 $16) 26. a3 $1 {[%emt 0:00:52]} e4 {[%emt 0:00:15] [#]} (26... hxg4 $6 27. fxg4 e4 28. Be2 $18) (26... Bg7 $11) 27. Bd4 $1 $16 {[%emt 0:01:09][%cal Od2f4]} exd3 {[%emt 0:00:17]} 28. Bxf6 {[%emt 0:00:08] Strongly threatening gxh5.} Qa6 {[%emt 0:00:11]} (28... Rxc4 $16 29. Qxd3 Qa6 (29... Rf4 $2 30. Bg5 $18)) 29. gxh5 $18 {[%emt 0:02:57]} (29. Qxd3 Qxc4 30. gxh5 Qc2+ 31. Ka1 Bh6 $14) 29... Qxc4 {[%emt 0:00:30]} 30. Qxd3 {[%emt 0:02:09]} (30. Qe3 $16 {Threatens to win with hxg6.} Qxd5 (30... Qc2+ 31. Ka1 $15) 31. hxg6 (31. Rxd3 Qxh5 32. Qg5 a4 $17)) 30... Qc2+ $1 $11 {[%emt 0:02:42]} 31. Ka1 {[%emt 0:00:15]} Qxd3 {[%emt 0:06:49]} 32. Rxd3 {[%emt 0:00:02]} a4 {[%emt 0:00:01]} 33. Rg1 {[%emt 0:04:31]} Rc4 {[%emt 0:01:39]} 34. Bc3 {[%emt 0:02:25]} Rxh4 {[%emt 0:05:41]} 35. hxg6 {[%emt 0:00:01]} fxg6 {[%emt 0:00:31]} 36. Rxg6+ {[%emt 0:00:06]} Kh7 $1 {[%emt 0:00:25]} 37. Rg1 {[%emt 0:00:45] Prevents Rh1} Bh6 {[%emt 0:00:19] Inhibits f4.} 38. Re1 {[%emt 0:01:57]} Rf8 {[%emt 0:01:42]} 39. Re7+ {[%emt 0:02:03]} Kg8 {[%emt 0:00:15]} 40. Re1 {[%emt 0:01:40] Repels Rh1} 1/2-1/2

[Event "Prague Festival Masters 2024"]
[Site "Prague"]
[Date "2024.02.27"]
[Round "1.3"]
[White "Abdusattorov, Nodirbek"]
[Black "Nguyen, Thai Dai Van"]
[Result "1-0"]
[ECO "E04"]
[WhiteElo "2727"]
[BlackElo "2632"]
[Annotator "TA"]
[PlyCount "81"]
[EventDate "2024.02.22"]
[EventType "tourn"]
[EventCountry "CZE"]
[SourceTitle "playchess.com"]
[Source "ChessBase"]
[SourceQuality "1"]
[TimeControl "40/5400+30:1800+30"]

{[%evp 10,81,12,0,0,-18,38,32,18,27,36,6,20,12,31,19,26,32,42,25,16,8,48,40,18,29,46,47,45,39,43,43,54,56,64,56,63,53,56,67,77,71,66,41,32,30,42,27,24,29,29,35,45,42,45,37,66,64,50,50,68,68,72,77,124,131,131,131,176,176,313,312,313,282]} 1. d4 {[%emt 0:00:45]} Nf6 {[%emt 0:00:14]} 2. c4 {[%emt 0:00:09]} e6 {[%emt 0:00:12]} 3. Nf3 {[%emt 0:00:08]} d5 {[%emt 0:00:07]} 4. g3 {[%emt 0:00:06]} dxc4 {[%emt 0:01:42]} 5. Bg2 {[%emt 0:00:21]} Bb4+ {[%emt 0:01:24]} 6. Nbd2 {[%emt 0:00:27]} b5 {[%emt 0:04:40] Inhibits Qa4.} 7. O-O {[%emt 0:01:16][%cal Od2c4]} Bb7 {[%emt 0:13:08] [#]} (7... O-O $11) 8. Nxc4 $1 $14 {[%emt 0:09:22]} bxc4 {[%emt 0:00:24] White is slightly better.} 9. Qa4+ {[%emt 0:00:06]} Nc6 {[%emt 0:00:06] Strongly threatening ...Qd7.} 10. Qb5 {[%emt 0:12:54]} (10. Ne5 $5 Nd5 11. Nxc6 $14) 10... Rb8 {[%emt 0:10:16] Threatens to win with ...Qd5.} 11. Ne5 $1 {[%emt 0:00:08]} O-O {[%emt 0:04:02]} 12. Nxc6 {[%emt 0:04:00]} Bxc6 {[%emt 0:00:12]} 13. Qxc6 {[%emt 0:00:04]} Qxd4 {[%emt 0:00:49]} 14. Be3 {[%emt 0:00:14]} Qxb2 {[%emt 0:01:32]} 15. Qxc4 {[%emt 0:02:45]} Qc3 {[%emt 0:39:29]} 16. Rfc1 {[%emt 0:04:19]} Qxc4 {[%emt 0:02:19]} 17. Rxc4 {[%emt 0:00:07]} Ba5 {[%emt 0:04:31]} 18. Bxa7 {[%emt 0:05:03]} Rb2 {[%emt 0:00:08]} 19. Bc5 {[%emt 0:01:25]} Rfb8 {[%emt 0:00:18]} 20. Bf3 {[%emt 0:00:46]} Nd7 {[%emt 0:02:32]} 21. Bd4 {[%emt 0:03:02] Dodges Ne5. This pair of bishops is nice.} Rb1+ {[%emt 0:00:10]} 22. Rc1 {[%emt 0:07:28]} Rxa1 {[%emt 0:00:20]} 23. Bxa1 {[%emt 0:00:05]} f6 {[%emt 0:02:47]} 24. Bc6 {[%emt 0:01:56]} Nf8 {[%emt 0:00:49]} 25. a4 {[%emt 0:04:00]} Kf7 {[%emt 0:01:11]} 26. Bd4 {[%emt 0:03:37]} Ng6 {[%emt 0:01:07]} 27. Bb5 {[%emt 0:10:28]} Ne7 {[%emt 0:00:25]} 28. Kg2 {[%emt 0:02:09]} Nf5 {[%emt 0:06:13]} 29. Ba7 {[%emt 0:05:25]} Ra8 {[%emt 0:01:24]} 30. Bc5 {[%emt 0:00:51]} Nd6 {[%emt 0:00:48]} 31. Bd3 {[%emt 0:00:12]} g6 {[%emt 0:01:16]} 32. Rb1 {[%emt 0:00:39]} f5 {[%emt 0:01:21]} 33. Bxd6 {[%emt 0:07:01]} cxd6 {[%emt 0:00:01][%mdl 4096] Endgame. KRB-KRB} 34. Rb7+ {[%emt 0:00:07]} Kf6 {[%emt 0:00:59]} 35. Rxh7 {[%emt 0:00:10] White is more active.} Bb6 {[%emt 0:00:23]} 36. Bb5 {[%emt 0:00:59]} Ra7 {[%emt 0:00:19]} (36... Rb8 $142) 37. Rxa7 $16 {[%emt 0:01:53]} Bxa7 {[%emt 0:00:01]} 38. a5 {[%emt 0:00:06] Prevents Bb6} g5 {[%emt 0:01:16][%cal Bg6g5,Bg5g4][%mdl 32]} 39. h4 {[%emt 0:03:30][%cal Bh2h4,Bh4h5][%mdl 32]} e5 {[%emt 0:00:33]} (39... gxh4 {was necessary.} 40. gxh4 e5) 40. h5 $18 {[%emt 0:03:03]} g4 {[%emt 0:00:22]} 41. Bd7 {[%emt 0:30:26] Weighted Error Value: White=0.04 (flawless) /Black=0.15 (very precise) .  Mistake:       	---       	Black=3      Inaccurate:     	White=1     	Black=3      OK:         	White=18    	Black=11     Best:        	White=4     	Black=1      Strong:       	White=1     	---} 1-0

[Event "Prague Festival Masters 2024"]
[Site "Prague"]
[Date "2024.02.27"]
[Round "1.4"]
[White "Vidit, Santosh Gujrathi"]
[Black "Navara, David"]
[Result "1/2-1/2"]
[ECO "C65"]
[WhiteElo "2742"]
[BlackElo "2679"]
[Annotator "TA"]
[PlyCount "178"]
[EventDate "2024.02.22"]
[EventType "tourn"]
[EventCountry "CZE"]
[SourceTitle "playchess.com"]
[Source "ChessBase"]
[SourceQuality "1"]
[TimeControl "40/5400+30:1800+30"]

{[%evp 96,178,28,28,28,28,28,28,28,28,28,28,28,28,28,28,28,28,28,28,28,28,28,0,28,28,28,28,28,28,28,28,28,28,28,28,28,28,28,28,28,28,28,28,28,0,28,28,28,28,28,28,28,28,28,28,28,28,28,28,28,0,28,28,29,0,8,0,0,0,0,0,0,0,0,0,0,0,0,0,0,0,1,0,10]} 1. e4 {[%emt 0:00:45]} e5 {[%emt 0:00:04]} 2. Nf3 {[%emt 0:00:16]} Nc6 {[%emt 0:00:07]} 3. Bb5 {[%emt 0:00:25]} Nf6 {[%emt 0:00:07]} 4. d3 {[%emt 0:00:37]} Bc5 {[%emt 0:00:06]} 5. Bg5 {[%emt 0:00:53]} h6 {[%emt 0:01:51]} 6. Bh4 {[%emt 0:00:15]} Ne7 {[%emt 0:00:08]} 7. d4 {[%emt 0:01:29]} exd4 {[%emt 0:00:08]} 8. e5 {[%emt 0:00:28]} Nfd5 {[%emt 0:02:45]} 9. O-O {[%emt 0:00:27]} O-O {[%emt 0:05:15]} 10. Nxd4 {[%emt 0:00:44]} Bxd4 {[%emt 0:08:56]} 11. Qxd4 {[%emt 0:00:20]} Nf5 {[%emt 0:00:06]} 12. Qxd5 {[%emt 0:01:05]} Qxh4 {[%emt 0:00:34]} 13. Qc5 {[%emt 0:00:36]} Qd8 {[%emt 0:08:32]} 14. Rd1 {[%emt 0:01:23]} d6 {[%emt 0:00:53]} 15. exd6 {[%emt 0:00:15]} Nxd6 {[%emt 0:02:46]} 16. Nc3 {[%emt 0:00:21]} b6 {[%emt 0:04:57]} 17. Qe5 {[%emt 0:06:03]} Bd7 {[%emt 0:08:36]} 18. a4 {[%emt 0:04:40]} Re8 {[%emt 0:06:44]} 19. Qg3 {[%emt 0:09:52]} Re6 {[%emt 0:03:04]} 20. a5 {[%emt 0:19:51]} Rb8 {[%emt 0:04:01]} 21. axb6 {[%emt 0:14:20]} axb6 {[%emt 0:00:12]} 22. Bd3 {[%emt 0:06:26]} Bc6 {[%emt 0:07:16]} 23. Ne2 {[%emt 0:02:06]} Re8 {[%emt 0:02:32]} 24. Nd4 {[%emt 0:01:00]} Bd7 {[%emt 0:04:44]} 25. Nb5 {[%emt 0:04:06]} Re6 {[%emt 0:02:17]} 26. Nxd6 {[%emt 0:04:32]} Rxd6 {[%emt 0:00:07]} 27. Bc4 {[%emt 0:01:45]} Ra8 {[%emt 0:03:12]} 28. Qf3 {[%emt 0:05:13]} Rxa1 {[%emt 0:01:09]} 29. Rxa1 {[%emt 0:00:16]} Qe7 {[%emt 0:01:04]} 30. Bd3 {[%emt 0:06:14]} Bc6 {[%emt 0:01:22]} 31. Qf4 {[%emt 0:00:16]} Re6 {[%emt 0:05:24]} 32. h4 {[%emt 0:00:57]} Re1+ {[%emt 0:00:29]} 33. Rxe1 {[%emt 0:00:05]} Qxe1+ {[%emt 0:00:06]} 34. Kh2 {[%emt 0:00:13]} Qe7 {[%emt 0:00:07]} 35. b3 {[%emt 0:00:28]} Qd6 {[%emt 0:01:10]} 36. Qxd6 {[%emt 0:00:39]} cxd6 {[%emt 0:00:05]} 37. f4 {[%emt 0:01:39]} Kf8 {[%emt 0:02:18]} 38. Kg3 {[%emt 0:02:29]} Ke7 {[%emt 0:00:19]} 39. Kf2 {[%emt 0:00:12]} f6 {[%emt 0:10:20]} 40. g3 {[%emt 0:05:26]} g5 {[%emt 0:00:51]} 41. Ke3 {[%emt 0:06:17]} gxh4 {[%emt 0:01:43]} 42. gxh4 {[%emt 0:00:02]} Bd7 {[%emt 0:06:16]} 43. Kd4 {[%emt 0:01:09]} Be6 {[%emt 0:01:01]} 44. Be4 {[%emt 0:03:46]} Kd7 {[%emt 0:02:08]} 45. b4 {[%emt 0:04:13]} Ke7 {[%emt 0:03:53]} 46. Bc6 {[%emt 0:00:47]} Bh3 {[%emt 0:01:01]} 47. c3 {[%emt 0:00:18]} Be6 {[%emt 0:02:49]} 48. Bd5 {[%emt 0:00:21]} Bh3 {[%emt 0:00:25]} 49. Bg8 {[%emt 0:00:13]} Bf5 {[%emt 0:03:19]} 50. Kc4 {[%emt 0:01:14]} Kd7 {[%emt 0:00:27]} 51. Kd5 {[%emt 0:00:33]} Bh3 {[%emt 0:00:39]} 52. Bh7 {[%emt 0:01:58]} Be6+ {[%emt 0:02:21]} 53. Ke4 {[%emt 0:00:51]} Ke7 {[%emt 0:00:20]} 54. Bg6 {[%emt 0:00:31]} Kd7 {[%emt 0:00:26]} 55. Ke3 {[%emt 0:00:51]} Ke7 {[%emt 0:01:08]} 56. Kf3 {[%emt 0:00:08]} Kf8 {[%emt 0:00:41]} 57. Bh5 {[%emt 0:00:37]} Bd5+ {[%emt 0:01:03]} 58. Ke3 {[%emt 0:00:28]} Be6 {[%emt 0:00:22]} 59. Kf3 {[%emt 0:00:38]} Bd5+ {[%emt 0:00:06]} 60. Kg3 {[%emt 0:00:06]} Ke7 {[%emt 0:00:59]} 61. Bg4 {[%emt 0:00:19]} Bb3 {[%emt 0:01:26]} 62. Bf5 {[%emt 0:00:35]} Bd5 {[%emt 0:01:00]} 63. Kf2 {[%emt 0:00:42]} Kd8 {[%emt 0:04:42]} 64. Ke3 {[%emt 0:00:14]} Ke7 {[%emt 0:00:05]} 65. Kd4 {[%emt 0:00:07]} Bf7 {[%emt 0:00:30]} 66. Bc8 {[%emt 0:03:02]} Kd8 {[%emt 0:02:14]} 67. Ba6 {[%emt 0:00:28]} Ke7 {[%emt 0:00:31]} 68. Bc4 {[%emt 0:00:18]} Bh5 {[%emt 0:00:29]} 69. Ke4 {[%emt 0:00:21]} Bg6+ {[%emt 0:00:52]} 70. Kd4 {[%emt 0:00:23]} Bh5 {[%emt 0:00:11]} 71. Bg8 {[%emt 0:00:07]} Kd7 {[%emt 0:01:24]} 72. Ke4 {[%emt 0:00:14]} Bg6+ {[%emt 0:00:56]} 73. Kd5 {[%emt 0:00:24]} Bf5 {[%emt 0:00:18]} 74. Bf7 {[%emt 0:00:41]} Bg4 {[%emt 0:00:18]} 75. Ke4 $1 {[%emt 0:00:36]} Ke7 {[%emt 0:00:27]} 76. Bb3 {[%emt 0:00:10]} Kd7 {[%emt 0:00:39]} 77. Bc4 {[%emt 0:02:19]} Ke7 {[%emt 0:01:41]} 78. Kd4 {[%emt 0:00:50]} Kd7 {[%emt 0:00:46]} 79. Bd3 {[%emt 0:00:36]} Be6 {[%emt 0:00:35]} 80. f5 {[%emt 0:05:31]} Bb3 {[%emt 0:00:49]} 81. Bb5+ {[%emt 0:01:41]} Kc7 {[%emt 0:01:16]} 82. Bc4 {[%emt 0:01:46]} Bc2 {[%emt 0:00:14]} 83. Be6 {[%emt 0:00:38]} Kd8 {[%emt 0:00:25]} 84. Ke3 {[%emt 0:02:09]} Ke7 {[%emt 0:00:12]} 85. Kf4 {[%emt 0:00:10]} Bd3 {[%emt 0:00:54]} 86. Bd5 {[%emt 0:00:07]} Bc2 {[%emt 0:00:29]} 87. Bc4 {[%emt 0:00:46]} Kd7 {[%emt 0:00:34]} 88. Bd5 {[%emt 0:00:28]} Ke7 {[%emt 0:00:14]} 89. Be6 {[%emt 0:00:56]} Kd8 {[%emt 0:00:26]} 1/2-1/2

[Event "Prague Festival Masters 2024"]
[Site "Prague"]
[Date "2024.02.27"]
[Round "1.5"]
[White "Praggnanandhaa R"]
[Black "Keymer, Vincent"]
[Result "1-0"]
[ECO "C54"]
[WhiteElo "2743"]
[BlackElo "2743"]
[Annotator "TA"]
[PlyCount "81"]
[EventDate "2024.02.22"]
[EventType "tourn"]
[EventCountry "CZE"]
[SourceTitle "playchess.com"]
[Source "ChessBase"]
[SourceQuality "1"]
[TimeControl "40/5400+30:1800+30"]

{[%evp 11,81,15,15,20,32,18,29,29,52,49,54,37,39,38,47,3,0,27,21,0,0,0,7,0,0,0,0,0,0,0,0,0,0,0,0,-4,-2,-8,119,116,241,250,276,253,265,282,225,309,239,181,384,390,399,401,502,469,591,587,572,598,663,670,772,764,835,858,881,860,877,732,729,720]} 1. e4 {[%emt 0:00:43]} e5 {[%emt 0:00:04]} 2. Nf3 {[%emt 0:00:10]} Nc6 {[%emt 0:00:04]} 3. Bc4 {[%emt 0:00:07]} Nf6 {[%emt 0:00:05]} 4. d3 {[%emt 0:00:06]} Bc5 {[%emt 0:00:05]} 5. O-O {[%emt 0:00:15]} a6 {[%emt 0:00:18]} 6. c3 {[%emt 0:00:34]} Ba7 {[%emt 0:00:17]} 7. a4 {[%emt 0:00:48]} d6 {[%emt 0:02:24]} 8. Re1 {[%emt 0:00:16]} O-O {[%emt 0:00:43]} 9. h3 {[%emt 0:00:19] White has an edge.} Nh5 {[%emt 0:03:17]} 10. Bg5 {[%emt 0:03:41]} Nf6 {[%emt 0:00:07]} 11. d4 {[%emt 0:04:49]} h6 {[%emt 0:00:16]} 12. Bh4 {[%emt 0:01:33]} g5 {[%emt 0:01:59] [#]} 13. Nxg5 {[%emt 0:04:56]} hxg5 {[%emt 0:01:41]} 14. Bxg5 {[%emt 0:00:10]} Kh7 $1 {[%emt 0:01:30]} 15. Qf3 {[%emt 0:02:47]} Kg6 {[%emt 0:00:07]} 16. Bh4 {[%emt 0:01:04] Strongly threatening Qg3+.} exd4 {[%emt 0:00:10]} 17. Qg3+ {[%emt 0:02:37]} Kh7 {[%emt 0:00:17] And now ...Ne5 would win.} 18. Bg5 {[%emt 0:00:12]} Rh8 $1 {[%emt 0:05:20]} 19. Nd2 {[%emt 0:01:05] aiming for e5.} Qg8 {[%emt 0:41:18][%cal Oc6e5] ...Ne5! is the strong threat.} 20. e5 $1 {[%emt 0:05:28]} Nh5 $1 {[%emt 0:08:18]} (20... dxe5 21. Nf3 (21. cxd4 Nh5 $17) 21... Nh5 22. Qh4 $18) (20... Nxe5 $2 21. Rxe5 Nh5 (21... dxe5 22. Bd3+ e4 23. Nxe4 $18) 22. Qf3 dxe5 23. Qxh5+ Kg7 24. Qf3 $18) 21. Qh4 $40 {[%emt 0:05:17][%mdl 128] White has some attack.} Qg6 {[%emt 0:01:38]} 22. Bf6 {[%emt 0:02:21]} Rg8 $1 {[%emt 0:03:14]} 23. Bd5 {[%emt 0:00:52]} (23. Bd3 Bf5 24. Bxf5 Qxf5 $11) 23... Bf5 {[%emt 0:04:15] Threatens to win with ...dxc3.} (23... dxe5 24. Be4 Bf5 25. g4 $14) 24. Bf3 $1 {[%emt 0:05:53] [#]} Rae8 {[%emt 0:02:13] [#]} 25. g3 $1 $16 {[%emt 0:26:35] The board is on fire.} (25. Qxh5+ Qxh5 26. Bxh5 dxc3 27. bxc3 Bxh3 $11) 25... Kh6 {[%emt 0:03:33] [#] A mistake that costs the game.} (25... dxc3 $16 26. Ne4 Qxg3+ (26... cxb2 $2 27. Bxh5 Qh6 28. Ng5+ Rxg5 29. Bxg5 $18) 27. Nxg3 Rxg3+ 28. Bg2 Kh6) 26. g4 $1 $18 {[%emt 0:03:37]} dxc3 {[%emt 0:08:32]} 27. bxc3 {[%emt 0:05:54] g5+ would now be deadly.} Nxe5 {[%emt 0:09:16]} (27... Kh7 28. g5 Qh6 29. Bxh5 (29. Bg4 Bxg4 30. gxh6 Nxf6 $18) 29... Nxe5 30. Kh1 (30. Kh2 Bxf2 31. Qxf2 Qxh5 $18) 30... Bxf2 31. Qxf2 $18) 28. g5+ {[%emt 0:01:29]} (28. Bxb7 $2 {is the wrong capture.} Bxg4 (28... Qxf6 29. Qxh5+ Kg7 30. Qxf5 $15) 29. hxg4 Nxg4 $19 (29... Qxf6 $2 30. Qxh5+ Kg7 31. Qf5 $19) (29... Qxf6 $2 30. Qxh5+ Kg7 31. Qf5 $19)) 28... Qxg5+ {[%emt 0:01:29]} 29. Bxg5+ {[%emt 0:00:03]} Rxg5+ {[%emt 0:00:05]} 30. Kh2 {[%emt 0:03:53] Hoping for Rg1.} Ng6 $2 {[%emt 0:01:30]} (30... Bg6) 31. Qxg5+ {[%emt 0:01:34]} Kxg5 {[%emt 0:00:01]} 32. Rxe8 {[%emt 0:00:07]} Nhf4 {[%emt 0:00:13]} 33. Bxb7 {[%emt 0:04:28] White is clearly winning.} a5 {[%emt 0:01:52]} 34. Ra8 {[%emt 0:04:24]} Bb6 {[%emt 0:00:28]} 35. Nc4 {[%emt 0:01:04]} Bxf2 {[%emt 0:00:36]} 36. Rxa5 {[%emt 0:00:15]} d5 {[%emt 0:00:24]} 37. Rf1 {[%emt 0:02:56]} Bb6 {[%emt 0:00:32]} 38. Nxb6 {[%emt 0:01:01]} (38. Bxd5 Bxa5 39. Nxa5 Nxd5 $14) 38... cxb6 {[%emt 0:00:01]} 39. Rb5 {[%emt 0:01:18]} Bxh3 {[%emt 0:00:33] [#]} 40. Rxf4 $1 {[%emt 0:01:39]} Nxf4 {[%emt 0:00:09]} 41. Rxb6 {[%emt 0:30:03] Weighted Error Value: White=0.07 (flawless) /Black=0.34.  Mistake:       	---       	Black=3      Inaccurate:     	White=1     	---        OK:         	White=14    	Black=8      Best:        	White=2     	Black=4      Strong:       	White=4     	Black=4} 1-0